bitfinex-derivatives/quotes_BTCF0:USTF0_20250822
["timestamp","ask_amount","ask_price","bid_price","bid_amount"]
[1755843940294,0.75560944,113380.0,113370.0,0.00104]
[1755843940589,0.75560944,113380.0,113370.0,0.36184]
[1755843941293,0.75560944,113380.0,113370.0,0.00104]
[1755843941495,0.75560944,113380.0,113370.0,0.36184]
[1755843942396,0.76462117,113380.0,113370.0,0.36184]
[1755843948695,0.76462117,113380.0,113370.0,0.38517]
[1755843949194,0.76462117,113380.0,113370.0,0.36184]
[1755843949790,0.04814,113360.0,113350.0,0.0798]
[1755843949991,0.75708944,113360.0,113350.0,0.4406]
[1755843950490,0.82664472,113360.0,113350.0,0.4406]
[1755843950998,0.82664472,113360.0,113350.0,0.4416]
[1755843951999,0.54952528,113360.0,113350.0,0.45545]
[1755843952303,0.54952528,113360.0,113350.0,0.45845]
[1755843954498,0.54952528,113360.0,113350.0,0.4446]
[1755843955002,0.82664472,113360.0,113350.0,0.4446]
[1755843957106,0.54952528,113360.0,113350.0,0.4446]
[1755843957304,0.82664472,113360.0,113350.0,0.4446]
[1755843958002,0.82664472,113360.0,113350.0,0.45845]
[1755843958596,0.54952528,113360.0,113350.0,0.45845]
[1755843960404,0.82664472,113360.0,113350.0,0.45845]
[1755843960607,0.82664472,113360.0,113350.0,0.4446]
[1755843963207,0.54952528,113360.0,113350.0,0.4446]
[1755843964916,0.82664472,113360.0,113350.0,0.4446]
[1755843968123,0.82664472,113360.0,113350.0,0.0838]
[1755843969912,0.79359472,113360.0,113350.0,0.3648]
[1755843970117,0.07968,113330.0,113320.0,0.05469]
[1755843970316,0.41382218,113330.0,113320.0,0.01380148]
[1755843970519,0.10365274,113330.0,113320.0,0.73156944]
[1755843970830,0.05080274,113330.0,113320.0,0.73556944]
[1755843971121,0.07366274,113330.0,113320.0,0.82382984]
[1755843971326,0.07366274,113330.0,113320.0,0.74522508]
[1755843971826,0.07366274,113330.0,113320.0,0.74622508]
[1755843972026,0.07366274,113330.0,113320.0,0.83448558]
[1755843972220,0.40809,113340.0,113320.0,1.3923576]
[1755843972221,0.01424,113340.0,113320.0,1.3923576]
[1755843972427,0.02374,113340.0,113330.0,1.20384944]
[1755843972621,0.0466,113340.0,113330.0,1.20384944]
[1755843972929,0.05613,113340.0,113330.0,1.20384944]
[1755843973132,0.08918,113340.0,113330.0,1.20384944]
[1755843973319,0.08918,113340.0,113330.0,1.29210214]
[1755843973320,0.05613,113340.0,113330.0,1.29210214]
[1755843973633,0.02374,113340.0,113330.0,1.90290214]
[1755843974023,0.05613,113340.0,113330.0,1.81464944]
[1755843974221,0.05613,113340.0,113330.0,1.90290214]
[1755843974628,0.0466,113340.0,113330.0,1.90290214]
[1755843975028,0.02374,113340.0,113330.0,1.90290214]
[1755843978935,0.02374,113340.0,113330.0,1.81464944]
[1755843979335,0.02374,113340.0,113330.0,1.90290214]
[1755843979529,0.02279,113350.0,113340.0,0.07036]
[1755843979829,0.02279,113350.0,113340.0,0.37467944]
[1755843980234,0.02279,113350.0,113340.0,0.82372434]
[1755843980436,0.02279,113350.0,113340.0,0.88682817]
[1755843980629,0.02379,113350.0,113340.0,1.46164378]
[1755843980833,0.002,113350.0,113340.0,1.52474761]
[1755843982240,0.002,113350.0,113340.0,1.71164378]
[1755843985441,0.002,113350.0,113340.0,1.77472378]
[1755843986239,0.002,113350.0,113340.0,1.71164378]
[1755843987844,0.002,113350.0,113340.0,1.77471968]
[1755843989445,0.002,113350.0,113340.0,1.52471968]
[1755843989646,0.002,113350.0,113340.0,1.77471968]
[1755843989845,0.002,113350.0,113340.0,1.46164378]
[1755843990344,0.002,113350.0,113340.0,1.52471399]
[1755843998447,0.10465938,113370.0,113360.0,0.01529]
[1755843998652,0.13915938,113370.0,113360.0,1.27632874]
[1755843998855,0.13915938,113370.0,113360.0,1.64618874]
[1755843999556,0.10765938,113370.0,113360.0,1.64618874]
[1755843999758,0.14215938,113370.0,113360.0,1.55795944]
[1755844000459,0.14615938,113370.0,113360.0,1.55795944]
[1755844002459,0.14615938,113370.0,113360.0,1.62102965]
[1755844002955,0.14615938,113370.0,113360.0,0.79654965]
[1755844003165,0.14615938,113370.0,113360.0,0.50558021]
[1755844003358,0.14615938,113370.0,113360.0,1.33002021]
[1755844004049,0.78487882,113370.0,113360.0,0.11966021]
[1755844004252,0.08848,113360.0,113350.0,0.93506021]
[1755844004555,0.08848,113360.0,113350.0,1.32602021]
[1755844004556,0.75890944,113360.0,113350.0,1.32602021]
[1755844005554,0.76090944,113360.0,113350.0,1.32602021]
[1755844005763,0.76370944,113360.0,113350.0,0.06307021]
[1755844005952,0.12099,113350.0,113340.0,0.90745396]
[1755844006153,0.12099,113340.0,113330.0,0.14078021]
[1755844006352,0.75890944,113340.0,113330.0,0.06313989]
[1755844006555,0.77751097,113340.0,113330.0,0.06313989]
[1755844007058,0.77671097,113340.0,113330.0,0.06313989]
[1755844007363,0.77671097,113340.0,113330.0,0.06413989]
[1755844007858,0.77751097,113340.0,113330.0,0.06413989]
[1755844008056,0.1231,113330.0,113320.0,0.08289541]
[1755844008260,0.76977996,113330.0,113320.0,0.01975552]
[1755844008461,0.1231,113320.0,113310.0,0.06313989]
[1755844008659,0.68743944,113320.0,113310.0,0.05428]
[1755844008857,0.68743944,113320.0,113310.0,0.06334]
[1755844009266,0.76101944,113320.0,113310.0,0.06334]
[1755844009466,0.76001944,113320.0,113310.0,0.06334]
[1755844009665,0.75801944,113320.0,113310.0,0.06334]
[1755844009965,0.75801944,113320.0,113310.0,0.04122]
[1755844010167,0.76201944,113320.0,113310.0,0.03216]
[1755844010665,0.83391508,113320.0,113310.0,0.03216]
[1755844010963,0.83391508,113320.0,113300.0,1.13573944]
[1755844011157,0.4839,113310.0,113300.0,1.20751]
[1755844011353,0.4839,113310.0,113300.0,1.23263]
[1755844011664,0.4839,113310.0,113300.0,1.24569]
[1755844012355,0.4859,113310.0,113300.0,1.52280944]
[1755844013863,0.4859,113310.0,113300.0,1.24569]
[1755844014768,0.4869,113310.0,113300.0,1.24569]
[1755844015367,0.76401944,113310.0,113300.0,1.24569]
[1755844016370,0.4869,113310.0,113300.0,1.24569]
[1755844018368,0.76401944,113310.0,113300.0,1.24569]
[1755844019766,0.4869,113310.0,113300.0,1.24569]
[1755844021264,0.4869,113310.0,113300.0,0.43309]
[1755844021466,0.76401944,113310.0,113300.0,0.85684]
[1755844023075,0.76401944,113310.0,113300.0,0.88196]
[1755844024164,0.76401944,113310.0,113300.0,0.90682]
[1755844024359,0.76401944,113310.0,113300.0,1.19778944]
[1755844024360,0.4869,113310.0,113300.0,1.19778944]
[1755844025370,0.4869,113310.0,113300.0,0.92067]
[1755844025570,0.4869,113310.0,113300.0,1.19778944]
[1755844026064,0.45196,113310.0,113300.0,1.19778944]
[1755844026271,0.02684,113310.0,113300.0,1.55858944]
[1755844026470,0.003,113310.0,113300.0,1.91938944]
[1755844027673,0.003,113310.0,113300.0,2.00766544]
[1755844028066,0.003,113310.0,113300.0,1.64686544]
[1755844028266,0.39356316,113330.0,113300.0,2.09673824]
[1755844028572,0.50186316,113330.0,113320.0,0.37410944]
[1755844028767,0.50186316,113330.0,113320.0,1.19874944]
[1755844028974,0.50186316,113330.0,113320.0,1.55954944]
[1755844029174,0.50186316,113330.0,113320.0,1.28243]
[1755844029676,0.50386316,113330.0,113320.0,1.28243]
[1755844030274,0.50686316,113330.0,113320.0,1.28243]
[1755844031168,0.11212316,113330.0,113320.0,1.19874944]
[1755844031473,0.14706316,113330.0,113320.0,1.19874944]
[1755844032374,0.05765316,113330.0,113320.0,1.56844604]
[1755844032778,0.08896,113310.0,113300.0,4e-05]
[1755844033067,0.08896,113310.0,113300.0,0.01384477]
[1755844033068,1.03813888,113310.0,113300.0,0.01384477]
[1755844033476,0.76101944,113310.0,113300.0,0.01384477]
[1755844034069,0.76201944,113310.0,113300.0,0.01384477]
[1755844034468,0.76201944,113310.0,113300.0,4e-05]
[1755844036476,0.50478032,113310.0,113300.0,4e-05]
[1755844036677,0.78189976,113310.0,113300.0,4e-05]
[1755844037276,0.79055379,113310.0,113300.0,4e-05]
[1755844044375,0.79055147,113310.0,113300.0,4e-05]
[1755844045380,0.77067347,113310.0,113300.0,4e-05]
[1755844050379,0.49355403,113310.0,113300.0,4e-05]
[1755844050982,0.77067347,113310.0,113300.0,4e-05]
[1755844054996,0.4849,113310.0,113300.0,0.37502944]
[1755844055195,0.4849,113310.0,113300.0,0.73582944]
[1755844055504,0.4849,113310.0,113300.0,0.74023944]
[1755844057400,0.07436,113310.0,113300.0,2.26367544]
[1755844057598,0.05784,113310.0,113300.0,2.26367544]
[1755844057899,0.02484,113310.0,113300.0,2.26367544]
[1755844058098,0.02484,113310.0,113300.0,2.25926544]
[1755844058302,0.03107,113320.0,113310.0,0.46955764]
[1755844058502,0.03107,113320.0,113310.0,0.83476764]
[1755844058802,0.06448,113320.0,113310.0,0.83476764]
[1755844059304,0.06648,113320.0,113310.0,0.83476764]
[1755844059501,0.03407,113320.0,113310.0,0.83476764]
[1755844059704,0.03407,113320.0,113310.0,0.5576482]
[1755844060002,0.03407,113320.0,113310.0,0.83476764]
[1755844062301,0.003,113320.0,113310.0,1.42502697]
[1755844062802,0.003,113320.0,113310.0,0.87078809]
[1755844062994,0.12074,113320.0,113310.0,1.14790753]
[1755844063602,0.04702,113300.0,113290.0,0.43987678]
[1755844063796,0.04702,113300.0,113270.0,0.16523087]
[1755844063797,0.03636,113290.0,113270.0,0.04406]
[1755844064001,1.01910888,113280.0,113270.0,0.04880743]
[1755844064600,0.74198944,113280.0,113270.0,0.035]
[1755844064800,0.81286513,113280.0,113270.0,0.035]
[1755844065505,0.81286513,113280.0,113270.0,0.038]
[1755844065702,1.92355219,113280.0,113270.0,0.038]
[1755844066109,1.94137686,113280.0,113270.0,0.04]
[1755844066407,1.94137686,113280.0,113270.0,0.038]
[1755844066602,1.94137686,113280.0,113270.0,0.036]
[1755844066801,1.94137686,113280.0,113270.0,0.038]
[1755844066999,1.94137686,113280.0,113270.0,0.037]
[1755844067401,1.94137686,113280.0,113270.0,0.036]
[1755844078312,1.94057686,113280.0,113270.0,0.036]
[1755844081911,1.94057686,113280.0,113270.0,0.05737]
[1755844082308,1.38633798,113280.0,113270.0,0.08922]
[1755844082514,1.94057686,113280.0,113270.0,0.09893]
[1755844082909,1.94057686,113280.0,113270.0,0.15454]
[1755844082910,1.66345742,113280.0,113270.0,0.15454]
[1755844083212,0.83933742,113280.0,113270.0,0.15895]
[1755844084911,0.56221798,113280.0,113270.0,0.15895]
[1755844085114,0.83492742,113280.0,113270.0,0.15454]
[1755844085812,0.53806798,113280.0,113270.0,0.15454]
[1755844086013,0.14660036,113280.0,113270.0,0.79245944]
[1755844086215,0.13226036,113280.0,113270.0,0.79245944]
[1755844086421,0.14723036,113280.0,113270.0,0.51534]
[1755844086718,0.18979036,113280.0,113270.0,0.51534]
[1755844086922,0.18979036,113280.0,113270.0,0.5239946]
[1755844087413,0.18979036,113280.0,113270.0,0.51534]
[1755844089822,0.18979036,113280.0,113270.0,0.52414319]
[1755844090321,0.18979036,113280.0,113270.0,0.51534]
[1755844090823,0.17005036,113280.0,113270.0,0.51534]
[1755844091022,0.13226036,113280.0,113270.0,0.79245944]
[1755844091523,0.13226036,113280.0,113270.0,0.88075874]
[1755844091718,0.13226036,113280.0,113270.0,0.79245944]
[1755844092016,0.01782467,113280.0,113270.0,0.88075874]
[1755844092521,0.01782467,113280.0,113270.0,0.88971158]
[1755844093421,0.01782467,113280.0,113270.0,1.13971158]
[1755844093623,0.01782467,113280.0,113270.0,1.2027693]
[1755844096221,0.01782467,113280.0,113270.0,1.13971158]
[1755844098219,0.01782467,113280.0,113270.0,1.2027693]
[1755844103014,0.01782467,113280.0,113270.0,1.13971158]
[1755844106423,0.04675,113300.0,113290.0,0.0093]
[1755844106722,0.04675,113300.0,113290.0,0.94165]
[1755844106723,0.11914,113300.0,113290.0,0.94165]
[1755844107527,0.12314,113300.0,113290.0,0.94165]
[1755844114134,0.08815,113300.0,113290.0,0.94165]
[1755844114638,0.05159,113300.0,113290.0,1.30245]
[1755844114830,0.004,113300.0,113290.0,1.57956944]
[1755844115027,0.004,113300.0,113290.0,1.66785324]
[1755844115233,0.004,113300.0,113290.0,1.73091096]
[1755844116234,0.004,113300.0,113290.0,1.45379152]
[1755844116432,0.004,113300.0,113290.0,1.73091096]
[1755844118132,0.004,113300.0,113290.0,1.64262716]
[1755844118634,0.004,113300.0,113290.0,1.73091096]
[1755844121645,0.004,113300.0,113290.0,1.66785324]
[1755844121836,0.004,113300.0,113290.0,1.73117337]
[1755844124752,0.004,113300.0,113290.0,1.36509013]
[1755844125051,0.004,113300.0,113290.0,1.73049337]
[1755844126256,0.004,113300.0,113290.0,1.45337393]
[1755844126455,0.004,113300.0,113290.0,1.80266228]
[1755844126656,0.004,113300.0,113290.0,1.71437848]
[1755844126847,0.004,113300.0,113290.0,1.73049337]
[1755844131761,0.004,113300.0,113290.0,1.79944914]
[1755844135161,0.004,113300.0,113290.0,1.71116534]
[1755844135664,0.004,113300.0,113290.0,1.79944914]
[1755844137751,0.004,113300.0,113290.0,1.71116534]
[1755844137956,0.004,113300.0,113290.0,1.71056534]
[1755844138157,0.004,113300.0,113290.0,1.79884914]
[1755844139453,0.03463,113300.0,113290.0,0.88856534]
[1755844139658,0.05899,113300.0,113290.0,1.71056534]
[1755844139960,0.0498,113300.0,113290.0,1.71056534]
[1755844140168,0.08805,113300.0,113290.0,1.71056534]
[1755844140363,0.07416,113300.0,113290.0,0.54249013]
[1755844140669,0.39783944,113300.0,113290.0,1.36445013]
[1755844141370,0.39783944,113300.0,113290.0,0.54249013]
[1755844141571,0.39783944,113300.0,113290.0,1.36437013]
[1755844145369,0.12072,113300.0,113290.0,1.36437013]
[1755844150172,0.39783944,113300.0,113290.0,1.36437013]
[1755844150672,0.12072,113300.0,113290.0,1.36437013]
[1755844154372,0.39864437,113300.0,113290.0,1.6422945]
[1755844154669,0.64389874,113300.0,113290.0,0.54249013]
[1755844154973,0.67656874,113300.0,113290.0,0.93969]
[1755844155466,0.67656874,113300.0,113290.0,1.21761437]
[1755844156171,0.39864437,113300.0,113290.0,1.21761437]
[1755844156768,0.39864437,113300.0,113290.0,1.57841437]
[1755844158176,0.39864437,113300.0,113290.0,1.21761437]
[1755844158570,0.39864437,113300.0,113290.0,1.57841437]
[1755844161175,0.39864437,113300.0,113290.0,1.6417345]
[1755844163876,0.39864437,113300.0,113290.0,1.36381013]
[1755844164076,0.39864437,113300.0,113290.0,1.6417345]
[1755844169166,0.39864437,113300.0,113290.0,1.36381013]
[1755844169373,0.39864437,113300.0,113290.0,1.6417345]
[1755844169573,0.05266,113300.0,113290.0,1.7300183]
[1755844169774,0.29105437,113300.0,113290.0,1.7300183]
[1755844171181,0.004,113300.0,113290.0,1.7300183]
[1755844171384,0.02586,113320.0,113310.0,0.1156]
[1755844171572,0.30378437,113320.0,113310.0,1.21412437]
[1755844171770,0.08082654,113330.0,113320.0,0.1156]
[1755844171970,0.39385792,113340.0,113320.0,1.20876634]
[1755844172173,0.38702792,113340.0,113330.0,1.16807437]
[1755844172676,0.38702792,113340.0,113330.0,1.25632697]
[1755844172986,0.41075792,113340.0,113330.0,1.16807437]
[1755844173177,0.42731792,113340.0,113330.0,1.16807437]
[1755844173379,0.47498792,113340.0,113330.0,1.16807437]
[1755844174183,0.47698792,113340.0,113330.0,1.16807437]
[1755844174388,0.19906355,113340.0,113330.0,0.9362]
[1755844176179,0.47680662,113340.0,113330.0,0.9362]
[1755844178084,0.07931355,113340.0,113330.0,1.30219567]
[1755844178777,0.00976,113340.0,113330.0,1.30219567]
[1755844179186,0.00976,113340.0,113330.0,1.0244526]
[1755844179487,0.00976,113340.0,113330.0,1.30219567]
[1755844179986,0.00876,113340.0,113330.0,1.30219567]
[1755844182092,0.00876,113340.0,113330.0,1.66299567]
[1755844182884,0.00876,113340.0,113330.0,1.3852526]
[1755844183084,0.00876,113340.0,113330.0,1.66299567]
[1755844187294,0.00876,113340.0,113330.0,1.3852526]
[1755844187501,0.00876,113340.0,113330.0,1.66299567]
[1755844190205,0.00876,113340.0,113330.0,1.3852526]
[1755844190499,0.00876,113340.0,113310.0,0.29711149]
[1755844190500,0.06016,113320.0,113310.0,0.12473085]
[1755844190700,0.39567307,113320.0,113310.0,0.11917]
[1755844191203,0.40439798,113320.0,113310.0,0.11917]
[1755844191597,0.40439798,113320.0,113310.0,0.12117]
[1755844192196,0.40439798,113320.0,113310.0,0.94065]
[1755844195099,0.39567307,113320.0,113310.0,0.94065]
[1755844195800,0.40474424,113320.0,113310.0,0.94065]
[1755844199910,0.39567307,113320.0,113310.0,0.94065]
[1755844200404,0.04915,113320.0,113310.0,0.94065]
[1755844200612,0.71892062,113330.0,113310.0,1.57919307]
[1755844200815,0.08531,113330.0,113320.0,0.11917]
[1755844201111,0.07032,113330.0,113320.0,0.39691307]
[1755844201310,0.00952,113330.0,113320.0,0.39691307]
[1755844202610,0.00952,113330.0,113320.0,0.47997]
[1755844203712,0.74033106,113340.0,113330.0,0.11917]
[1755844204016,0.77295106,113340.0,113330.0,0.93825]
[1755844204515,0.0719,113340.0,113330.0,0.93825]
[1755844204721,0.05691,113340.0,113330.0,0.93825]
[1755844205018,0.05791,113340.0,113330.0,0.93825]
[1755844205219,0.07908,113340.0,113330.0,0.93825]
[1755844205517,0.12669,113340.0,113330.0,0.93825]
[1755844205814,0.09407,113340.0,113330.0,0.93825]
[1755844206012,0.01828,113340.0,113330.0,1.57679307]
[1755844206217,0.00876,113340.0,113330.0,1.57679307]
[1755844206615,0.00876,113340.0,113330.0,1.58580586]
[1755844207422,0.00876,113340.0,113330.0,1.67405846]
[1755844208321,0.00876,113340.0,113330.0,1.58580586]
[1755844209220,0.00876,113340.0,113330.0,1.57679307]
[1755844209520,0.02993,113340.0,113330.0,1.29885]
[1755844209716,0.31719307,113340.0,113330.0,0.47997]
[1755844209922,0.40443307,113340.0,113330.0,1.29877]
[1755844210915,0.40443307,113340.0,113330.0,1.29869]
[1755844213021,0.40443307,113340.0,113330.0,0.47997]
[1755844213223,0.12669,113340.0,113330.0,0.93777]
[1755844213424,0.40443307,113340.0,113330.0,0.93777]
[1755844220123,0.09407,113340.0,113330.0,0.93777]
[1755844220425,0.33282307,113340.0,113330.0,0.93777]
[1755844220617,0.35689307,113340.0,113330.0,0.93777]
[1755844220820,0.40494307,113340.0,113330.0,0.93777]
[1755844225927,0.1272,113340.0,113330.0,0.93777]
[1755844226125,0.40494307,113340.0,113330.0,0.93777]
[1755844228625,0.07176,113340.0,113330.0,0.93777]
[1755844228825,0.01828,113340.0,113330.0,0.93777]
[1755844229031,0.0705355,113350.0,113330.0,1.68215377]
[1755844229327,0.08094757,113360.0,113350.0,0.04626]
[1755844229531,0.14747146,113360.0,113350.0,0.93547]
[1755844229832,0.63854307,113370.0,113350.0,1.50365307]
[1755844229833,0.67639307,113370.0,113350.0,1.50365307]
[1755844230031,0.74281319,113370.0,113360.0,0.11755]
[1755844230339,0.77708319,113370.0,113360.0,0.11755]
[1755844231534,0.84879892,113370.0,113360.0,0.11755]
[1755844231939,0.13813585,113370.0,113360.0,0.11755]
[1755844232134,0.11842573,113370.0,113360.0,0.11755]
[1755844232335,0.14249573,113370.0,113360.0,0.11755]
[1755844232535,0.4682888,113370.0,113360.0,0.11755]
[1755844232836,0.4812118,113370.0,113360.0,0.11755]
[1755844234540,0.20346873,113370.0,113360.0,0.11755]
[1755844234837,0.4812118,113370.0,113360.0,0.11755]
[1755844235533,0.20346873,113370.0,113360.0,0.11755]
[1755844235731,0.4812118,113370.0,113360.0,0.11755]
[1755844240634,0.16027573,113370.0,113360.0,0.11755]
[1755844240834,0.16027573,113370.0,113360.0,0.39529307]
[1755844241141,0.4722888,113370.0,113360.0,0.11755]
[1755844242139,0.4722888,113370.0,113360.0,0.08493]
[1755844242342,0.4722888,113370.0,113360.0,0.11755]
[1755844243445,0.8330888,113370.0,113360.0,0.11755]
[1755844243744,0.84183328,113370.0,113360.0,0.11755]
[1755844244644,0.48103328,113370.0,113360.0,0.11755]
[1755844245243,0.20329021,113370.0,113360.0,0.11755]
[1755844245443,0.48103328,113370.0,113360.0,0.11755]
[1755844246241,0.48103328,113370.0,113360.0,0.03097]
[1755844246744,0.48103328,113370.0,113360.0,0.07981]
[1755844246943,0.48103328,113370.0,113360.0,0.10301]
[1755844247133,0.48103328,113370.0,113360.0,0.1166]
[1755844248244,0.84183328,113370.0,113360.0,0.03097]
[1755844248437,0.84183328,113370.0,113360.0,0.02162]
[1755844249845,0.84183328,113370.0,113360.0,0.03121]
[1755844250040,0.84183328,113370.0,113360.0,0.07906]
[1755844250244,0.84183328,113370.0,113360.0,0.11585]
[1755844252146,0.84183328,113370.0,113360.0,0.04743]
[1755844252348,0.84183328,113370.0,113360.0,0.03121]
[1755844253345,0.83783328,113370.0,113360.0,0.02162]
[1755844253546,0.84083328,113370.0,113360.0,0.02162]
[1755844255348,0.86052996,113370.0,113360.0,0.02162]
[1755844255552,0.84083328,113370.0,113360.0,0.02162]
[1755844258258,0.11964,113360.0,113350.0,0.4762]
[1755844258453,0.75818307,113360.0,113350.0,0.04698]
[1755844259258,0.11964,113350.0,113340.0,0.50772085]
[1755844259450,0.39738307,113350.0,113340.0,0.53935085]
[1755844260252,0.39738307,113350.0,113340.0,0.50256085]
[1755844260454,0.39738307,113350.0,113340.0,0.11013085]
[1755844260653,0.39738307,113350.0,113340.0,0.09391085]
[1755844260957,0.39838307,113350.0,113340.0,0.09391085]
[1755844261156,0.39838307,113350.0,113340.0,0.12554085]
[1755844262160,0.39838307,113350.0,113330.0,0.51190519]
[1755844262354,0.39738307,113340.0,113330.0,0.55888519]
[1755844263260,0.39738307,113340.0,113330.0,0.19808519]
[1755844264262,0.11964,113340.0,113330.0,0.19808519]
[1755844264463,0.39738307,113340.0,113330.0,0.19808519]
[1755844264962,0.39738307,113340.0,113330.0,0.14692085]
[1755844265164,0.39738307,113340.0,113330.0,0.17855085]
[1755844267361,0.01366,113330.0,113320.0,0.4807102]
[1755844267568,0.39738307,113330.0,113320.0,0.5593202]
[1755844268870,0.39738307,113330.0,113320.0,0.5603202]
[1755844269369,0.39738307,113330.0,113320.0,0.5623202]
[1755844270665,0.39738307,113330.0,113320.0,1.3786802]
[1755844272464,0.08619,113330.0,113320.0,1.3786802]
[1755844272766,0.11964,113330.0,113320.0,1.3786802]
[1755844272966,0.11964,113330.0,113320.0,1.35871085]
[1755844274372,0.39738307,113330.0,113320.0,1.35871085]
[1755844275271,0.36393307,113330.0,113320.0,1.35871085]
[1755844275574,0.35027307,113330.0,113320.0,1.35871085]
[1755844275874,0.39738307,113330.0,113320.0,1.35871085]
[1755844276171,0.36393307,113330.0,113320.0,1.35871085]
[1755844276670,0.11964,113330.0,113320.0,1.35871085]
[1755844276973,0.32536307,113340.0,113330.0,0.11779]
[1755844277174,0.36330307,113340.0,113330.0,0.47859]
[1755844277373,0.39644307,113340.0,113330.0,0.47859]
[1755844278378,0.1187,113340.0,113330.0,0.47859]
[1755844278679,0.39644307,113340.0,113330.0,0.47859]
[1755844280473,0.75724307,113340.0,113330.0,0.11779]
[1755844285379,0.4795,113340.0,113330.0,0.11779]
[1755844285688,0.75724307,113340.0,113330.0,0.11779]
[1755844285980,0.72410307,113340.0,113330.0,0.11779]
[1755844286187,0.75724307,113340.0,113330.0,0.11779]
[1755844291795,0.4795,113340.0,113330.0,0.11779]
[1755844292096,0.75724307,113340.0,113330.0,0.11779]
[1755844292294,0.75724307,113340.0,113330.0,0.04826]
[1755844292493,0.75724307,113340.0,113330.0,0.00938]
[1755844292696,0.75724307,113340.0,113320.0,1.31149085]
[1755844292895,0.39723307,113330.0,113320.0,1.31149085]
[1755844293090,0.11949,113320.0,113310.0,0.06350326]
[1755844293394,0.11949,113310.0,113300.0,0.10327]
[1755844293597,0.67497614,113310.0,113300.0,0.03209]
[1755844293891,0.39523307,113310.0,113300.0,0.08083]
[1755844294301,0.40396086,113310.0,113300.0,0.08083]
[1755844294699,0.40296086,113310.0,113300.0,0.08083]
[1755844295796,0.39423307,113310.0,113300.0,0.08083]
[1755844296298,0.39423307,113310.0,113300.0,0.10514]
[1755844296599,0.46614918,113310.0,113300.0,0.10514]
[1755844297096,0.46614918,113310.0,113300.0,0.11944]
[1755844297599,0.47497549,113310.0,113300.0,0.11944]
[1755844298699,0.47497549,113310.0,113300.0,0.02271]
[1755844298897,0.47497549,113310.0,113290.0,1.2477]
[1755844299096,0.39723307,113300.0,113290.0,1.2477]
[1755844300402,0.39723307,113300.0,113290.0,1.2487]
[1755844300599,0.39723307,113300.0,113290.0,1.21613]
[1755844300800,0.39723307,113300.0,113290.0,1.2487]
[1755844301200,0.39723307,113300.0,113290.0,0.12044]
[1755844301505,0.75803307,113300.0,113290.0,0.12044]
[1755844301904,0.75803307,113300.0,113290.0,0.04926]
[1755844302400,0.75803307,113300.0,113290.0,0.002]
[1755844303607,1.57355307,113300.0,113290.0,0.002]
[1755844303794,1.57355307,113300.0,113290.0,0.001]
[1755844304699,1.51554307,113300.0,113270.0,1.31332763]
[1755844304906,0.39723307,113290.0,113280.0,0.08083]
[1755844305108,0.46959249,113290.0,113280.0,0.08083]
[1755844305501,0.11949,113280.0,113270.0,0.46837]
[1755844305703,0.67497614,113280.0,113270.0,0.08326]
[1755844305906,1.03577614,113280.0,113270.0,0.06909]
[1755844306210,1.04446257,113280.0,113270.0,0.06909]
[1755844306712,0.7657195,113280.0,113270.0,0.06909]
[1755844307010,0.7657195,113280.0,113270.0,0.10336]
[1755844307407,0.7657195,113280.0,113270.0,0.10536]
[1755844308008,0.7657195,113280.0,113270.0,0.10436]
[1755844308598,0.7657195,113280.0,113270.0,0.10236]
[1755844308801,0.7657195,113280.0,113270.0,0.10336]
[1755844309501,0.7657195,113280.0,113270.0,0.05971]
[1755844309701,0.7657195,113280.0,113270.0,0.10314]
[1755844309905,0.7657195,113280.0,113270.0,0.11931]
[1755844310105,0.7657195,113280.0,113270.0,0.15647]
[1755844310506,0.11849,113280.0,113270.0,0.15647]
[1755844310807,0.39623307,113280.0,113270.0,0.51727]
[1755844312004,0.39623307,113280.0,113270.0,0.52615453]
[1755844313108,0.39623307,113280.0,113270.0,0.51727]
[1755844314401,0.02326,113270.0,113240.0,0.0139]
[1755844314606,0.95587614,113250.0,113240.0,0.10948148]
[1755844314807,0.31733307,113250.0,113240.0,0.10948148]
[1755844315008,0.31733307,113250.0,113240.0,0.09567]
[1755844315199,0.01633,113250.0,113240.0,0.74802423]
[1755844315405,0.01633,113250.0,113240.0,0.74882423]
[1755844315713,0.01633,113250.0,113240.0,0.75182411]
[1755844316108,0.01633,113250.0,113240.0,0.47328104]
[1755844316509,0.01633,113250.0,113240.0,0.50054104]
[1755844317208,0.01633,113250.0,113240.0,0.49754104]
[1755844317411,0.01633,113250.0,113240.0,0.49354104]
[1755844317711,0.59507614,113250.0,113240.0,0.45927104]
[1755844318014,0.95587614,113250.0,113240.0,0.08457104]
[1755844318215,0.67813307,113250.0,113240.0,0.08457185]
[1755844318413,0.67813307,113250.0,113240.0,0.11884185]
[1755844319008,0.38406,113260.0,113240.0,0.69985492]
[1755844319212,0.37713,113260.0,113250.0,0.11893]
[1755844319421,0.65487307,113260.0,113250.0,0.13274185]
[1755844319716,0.67813307,113260.0,113250.0,0.13274185]
[1755844320111,0.65487307,113260.0,113250.0,0.94802185]
[1755844320312,0.65487307,113270.0,113260.0,0.11893]
[1755844320904,0.67813307,113270.0,113260.0,0.11893]
[1755844321911,0.67913307,113270.0,113260.0,0.11893]
[1755844322815,0.02326,113260.0,113240.0,0.42969]
[1755844323023,0.95587614,113250.0,113240.0,0.09847114]
[1755844323212,0.67813307,113250.0,113240.0,0.13274114]
[1755844323412,0.67813307,113250.0,113240.0,0.13274155]
[1755844323817,0.31733307,113250.0,113240.0,0.13274155]
[1755844324722,0.32597967,113250.0,113240.0,0.13274155]
[1755844325723,0.32597967,113250.0,113240.0,0.11893]
[1755844326020,0.32597967,113250.0,113240.0,0.08466]
[1755844326213,0.60372274,113250.0,113240.0,0.05499]
[1755844326413,0.03959,113240.0,113230.0,1.24751]
[1755844326609,0.31733307,113240.0,113230.0,1.24751]
[1755844327416,0.31733307,113240.0,113230.0,0.93421]
[1755844327617,0.67813307,113240.0,113230.0,0.90094]
[1755844327820,0.67813307,113240.0,113230.0,0.08566]
[1755844328020,0.67813307,113240.0,113230.0,0.08666]
[1755844328525,0.67813307,113240.0,113230.0,0.07276]
[1755844329514,0.67813307,113240.0,113230.0,0.02526]
[1755844329721,0.67813307,113240.0,113230.0,0.002]
[1755844330314,0.67813307,113240.0,113230.0,0.02457]
[1755844330519,0.67813307,113240.0,113230.0,0.002]
[1755844330929,0.40039,113240.0,113230.0,0.002]